[Event "Titled Tuesday Blitz March 22 Late 2022"]
[White "Wieczorek, Oskar"]
[Black "Vovk, Orest"]
[WhiteFideId "1133950"]
[BlackFideId "14113490"]
[WhiteElo "2319"]
[BlackElo "2203"]
[Result "1-0"]
[Round "09"]
[TimeControl "180+1"]
[Date "2022.03.22"]
[WhiteClock "0:00:08"]
[BlackClock "0:00:06"]

1. e4 {[%clk 0:03:00]}  Nf6 {[%clk 0:02:59]} 2. Bd3 {[%clk 0:02:58]}  d5 {[%clk 0:02:56]} 3. e5 {[%clk 0:02:57]}  Ne4 {[%clk 0:02:52]} 4. Nf3 {[%clk 0:02:54]}  Nc6 {[%clk 0:02:44]} 5. Be2 {[%clk 0:02:49]}  Bf5 {[%clk 0:02:39]} 6. d3 {[%clk 0:02:43]}  Nc5 {[%clk 0:02:38]} 7. c3 {[%clk 0:02:36]}  d4 {[%clk 0:02:36]} 8. O-O {[%clk 0:02:24]}  e6 {[%clk 0:02:34]} 9. Bg5 {[%clk 0:02:22]}  Be7 {[%clk 0:02:18]} 10. Bxe7 {[%clk 0:02:21]}  Kxe7 {[%clk 0:02:18]} 11. b4 {[%clk 0:02:15]}  Nd7 {[%clk 0:01:58]} 12. b5 {[%clk 0:02:06]}  Na5 {[%clk 0:01:57]} 13. Qa4 {[%clk 0:02:00]}  b6 {[%clk 0:01:52]} 14. cxd4 {[%clk 0:01:54]}  Kf8 {[%clk 0:01:47]} 15. Nc3 {[%clk 0:01:54]}  Kg8 {[%clk 0:01:43]} 16. Rac1 {[%clk 0:01:49]}  h6 {[%clk 0:01:33]} 17. Ne4 {[%clk 0:01:48]}  Kh7 {[%clk 0:01:30]} 18. Qb4 {[%clk 0:01:44]}  a6 {[%clk 0:01:27]} 19. a4 {[%clk 0:01:43]}  axb5 {[%clk 0:01:26]} 20. axb5 {[%clk 0:01:44]}  Re8 {[%clk 0:01:19]} 21. Rc2 {[%clk 0:01:44]}  Rc8 {[%clk 0:01:12]} 22. Rfc1 {[%clk 0:01:43]}  Nf8 {[%clk 0:00:59]} 23. h3 {[%clk 0:01:30]}  Ng6 {[%clk 0:00:58]} 24. g3 {[%clk 0:00:59]}  Ne7 {[%clk 0:00:57]} 25. h4 {[%clk 0:00:44]}  Nd5 {[%clk 0:00:57]} 26. Qa3 {[%clk 0:00:45]}  Qd7 {[%clk 0:00:51]} 27. Kg2 {[%clk 0:00:44]}  Qxb5 {[%clk 0:00:48]} 28. Rb2 {[%clk 0:00:43]}  Qd7 {[%clk 0:00:45]} 29. Bd1 {[%clk 0:00:42]}  Kg8 {[%clk 0:00:33]} 30. Ba4 {[%clk 0:00:41]}  Qe7 {[%clk 0:00:29]} 31. Qxe7 {[%clk 0:00:35]}  Rxe7 {[%clk 0:00:30]} 32. Nd6 {[%clk 0:00:36]}  Rd8 {[%clk 0:00:22]} 33. Nxf5 {[%clk 0:00:34]}  exf5 {[%clk 0:00:23]} 34. Bc6 {[%clk 0:00:33]}  Nxc6 {[%clk 0:00:22]} 35. Rxc6 {[%clk 0:00:34]}  Red7 {[%clk 0:00:18]} 36. Rb5 {[%clk 0:00:31]}  Ne7 {[%clk 0:00:17]} 37. Rc1 {[%clk 0:00:30]}  Nd5 {[%clk 0:00:14]} 38. Rc6 {[%clk 0:00:26]}  Ra8 {[%clk 0:00:14]} 39. Rb2 {[%clk 0:00:21]}  Ra3 {[%clk 0:00:12]} 40. Rd2 {[%clk 0:00:22]}  Nb4 {[%clk 0:00:11]} 41. Rc4 {[%clk 0:00:18]}  Nxd3 {[%clk 0:00:10]} 42. d5 {[%clk 0:00:15]}  Rxd5 {[%clk 0:00:09]} 43. Rxc7 {[%clk 0:00:16]}  Ne1+ {[%clk 0:00:09]} 44. Kf1 {[%clk 0:00:15]}  Rxd2 {[%clk 0:00:08]} 45. Nxd2 {[%clk 0:00:16]}  Nd3 {[%clk 0:00:08]} 46. Rc8+ {[%clk 0:00:16]}  Kh7 {[%clk 0:00:08]} 47. f4 {[%clk 0:00:15]}  Nc5 {[%clk 0:00:07]} 48. Nc4 {[%clk 0:00:15]}  Rxg3 {[%clk 0:00:06]} 49. Nd6 {[%clk 0:00:15]}  Ne6 {[%clk 0:00:05]} 50. Kf2 {[%clk 0:00:12]}  Rg4 {[%clk 0:00:05]} 51. Nxf7 {[%clk 0:00:12]}  Rxf4+ {[%clk 0:00:05]} 52. Ke3 {[%clk 0:00:13]}  Rxh4 {[%clk 0:00:05]} 53. Re8 {[%clk 0:00:12]}  Ng5 {[%clk 0:00:04]} 54. Nd6 {[%clk 0:00:10]}  b5 {[%clk 0:00:03]} 55. e6 {[%clk 0:00:09]}  f4+ {[%clk 0:00:04]} 56. Kd2 {[%clk 0:00:07]}  Nxe6 {[%clk 0:00:03]} 57. Rxe6 {[%clk 0:00:08]}  b4 {[%clk 0:00:03]} 58. Ne4 {[%clk 0:00:07]}  g5 {[%clk 0:00:03]} 59. Rb6 {[%clk 0:00:06]}  Rh2+ {[%clk 0:00:03]} 60. Kd3 {[%clk 0:00:06]}  f3 {[%clk 0:00:03]} 61. Rxb4 {[%clk 0:00:06]}  g4 {[%clk 0:00:02]} 62. Ke3 {[%clk 0:00:06]}  Kg6 {[%clk 0:00:02]} 63. Rb6+ {[%clk 0:00:06]}  Kf7 {[%clk 0:00:02]} 64. Rf6+ {[%clk 0:00:06]}  Ke7 {[%clk 0:00:02]} 65. Rf4 {[%clk 0:00:06]}  h5 {[%clk 0:00:03]} 66. Ng3 {[%clk 0:00:06]}  Rg2 {[%clk 0:00:03]} 67. Nxh5 {[%clk 0:00:06]}  Re2+ {[%clk 0:00:03]} 68. Kd3 {[%clk 0:00:06]}  Re6 {[%clk 0:00:04]} 69. Rxg4 {[%clk 0:00:06]}  f2 {[%clk 0:00:03]} 70. Ng3 {[%clk 0:00:06]}  Rf6 {[%clk 0:00:03]} 71. Nf1 {[%clk 0:00:06]}  Rf3+ {[%clk 0:00:03]} 72. Ke2 {[%clk 0:00:07]}  Rf6 {[%clk 0:00:04]} 73. Ra4 {[%clk 0:00:06]}  Re6+ {[%clk 0:00:04]} 74. Kxf2 {[%clk 0:00:06]}  Rf6+ {[%clk 0:00:05]} 75. Ke2 {[%clk 0:00:06]}  Re6+ {[%clk 0:00:06]} 76. Ne3 {[%clk 0:00:07]}  Kd6 {[%clk 0:00:06]} 77. Kd3 {[%clk 0:00:07]}  Kc7 {[%clk 0:00:07]} 78. Ra7+ {[%clk 0:00:07]}  Kb6 {[%clk 0:00:07]} 79. Rh7 {[%clk 0:00:08]}  Rd6+ {[%clk 0:00:06]} 80. Kc4 {[%clk 0:00:08]}  Rc6+ {[%clk 0:00:07]} 81. Kb4 {[%clk 0:00:08]}  Rd6 {[%clk 0:00:06]} 82. Nc4+ {[%clk 0:00:08]} 1-0


[Site "https://www.chess.com"]

[Event "Titled Tuesday Blitz March 22 Late 2022"]
[White "Yoo, Christopher Woojin"]
[Black "Indjic, Aleksandar"]
[WhiteFideId "30909694"]
[BlackFideId "911925"]
[WhiteElo "2105"]
[BlackElo "2616"]
[Result "0-1"]
[Round "09"]
[TimeControl "180+1"]
[Date "2022.03.22"]
[WhiteClock "0:00:02"]
[BlackClock "0:00:11"]

1. d4 {[%clk 0:02:52]}  Nf6 {[%clk 0:02:59]} 2. Nf3 {[%clk 0:02:52]}  e6 {[%clk 0:02:59]} 3. Bf4 {[%clk 0:02:52]}  c5 {[%clk 0:02:59]} 4. e3 {[%clk 0:02:52]}  cxd4 {[%clk 0:02:59]} 5. exd4 {[%clk 0:02:52]}  b6 {[%clk 0:03:00]} 6. Nbd2 {[%clk 0:02:52]}  Ba6 {[%clk 0:03:00]} 7. Bxa6 {[%clk 0:02:49]}  Nxa6 {[%clk 0:03:01]} 8. O-O {[%clk 0:02:49]}  Be7 {[%clk 0:03:00]} 9. Qe2 {[%clk 0:02:48]}  Nc7 {[%clk 0:02:59]} 10. c4 {[%clk 0:02:45]}  d6 {[%clk 0:02:53]} 11. Ne4 {[%clk 0:02:16]}  O-O {[%clk 0:02:50]} 12. Nxf6+ {[%clk 0:01:52]}  Bxf6 {[%clk 0:02:50]} 13. Rac1 {[%clk 0:01:52]}  Qd7 {[%clk 0:02:48]} 14. Rfd1 {[%clk 0:01:48]}  Be7 {[%clk 0:02:40]} 15. h4 {[%clk 0:01:44]}  h6 {[%clk 0:02:39]} 16. h5 {[%clk 0:01:44]}  Rac8 {[%clk 0:02:36]} 17. Nd2 {[%clk 0:01:39]}  Rfd8 {[%clk 0:02:21]} 18. Qg4 {[%clk 0:01:16]}  Kf8 {[%clk 0:02:20]} 19. Nf1 {[%clk 0:01:04]}  Ne8 {[%clk 0:02:20]} 20. Qf3 {[%clk 0:01:00]}  Nf6 {[%clk 0:02:18]} 21. Ne3 {[%clk 0:00:56]}  d5 {[%clk 0:02:07]} 22. b3 {[%clk 0:00:55]}  Ne4 {[%clk 0:01:43]} 23. Rc2 {[%clk 0:00:51]}  b5 {[%clk 0:01:37]} 24. c5 {[%clk 0:00:49]}  b4 {[%clk 0:01:28]} 25. Ng4 {[%clk 0:00:49]}  f6 {[%clk 0:01:18]} 26. Re1 {[%clk 0:00:44]}  a5 {[%clk 0:01:04]} 27. Rce2 {[%clk 0:00:32]}  Rc6 {[%clk 0:01:03]} 28. Bxh6 {[%clk 0:00:20]}  gxh6 {[%clk 0:00:56]} 29. Ne5 {[%clk 0:00:20]}  Qe8 {[%clk 0:00:53]} 30. Nxc6 {[%clk 0:00:20]}  Qxc6 {[%clk 0:00:53]} 31. Qf4 {[%clk 0:00:20]}  Ng5 {[%clk 0:00:37]} 32. Qg3 {[%clk 0:00:20]}  Qe8 {[%clk 0:00:25]} 33. c6 {[%clk 0:00:15]}  Rc8 {[%clk 0:00:22]} 34. c7 {[%clk 0:00:14]}  Qxh5 {[%clk 0:00:19]} 35. Rc2 {[%clk 0:00:14]}  Ne4 {[%clk 0:00:18]} 36. Qd3 {[%clk 0:00:08]}  Qe8 {[%clk 0:00:17]} 37. f3 {[%clk 0:00:07]}  Ng5 {[%clk 0:00:16]} 38. Qa6 {[%clk 0:00:05]}  Qd7 {[%clk 0:00:16]} 39. Rec1 {[%clk 0:00:06]}  Kf7 {[%clk 0:00:15]} 40. Rc6 {[%clk 0:00:05]}  h5 {[%clk 0:00:15]} 41. Rb6 {[%clk 0:00:05]}  Rxc7 {[%clk 0:00:15]} 42. Rbc6 {[%clk 0:00:04]}  Rxc6 {[%clk 0:00:15]} 43. Rxc6 {[%clk 0:00:05]}  e5 {[%clk 0:00:11]} 44. Qb6 {[%clk 0:00:04]}  e4 {[%clk 0:00:11]} 45. Rc7 {[%clk 0:00:04]}  Qe6 {[%clk 0:00:11]} 46. Qb7 {[%clk 0:00:01]}  exf3 {[%clk 0:00:11]} 47. gxf3 {[%clk 0:00:02]}  Qe3+ {[%clk 0:00:11]} 48. Kf1 {[%clk 0:00:01]}  Qxf3+ {[%clk 0:00:11]} 49. Ke1 {[%clk 0:00:02]}  Qe3+ {[%clk 0:00:11]} 50. Kd1 {[%clk 0:00:02]}  Qxd4+ {[%clk 0:00:11]} 51. Kc2 {[%clk 0:00:03]}  Qe4+ {[%clk 0:00:12]} 52. Kb2 {[%clk 0:00:03]}  h4 {[%clk 0:00:12]} 53. Qc8 {[%clk 0:00:02]}  h3 {[%clk 0:00:12]} 54. Rc2 {[%clk 0:00:02]}  h2 {[%clk 0:00:11]} 0-1


[Site "https://www.chess.com"]

[Event "Titled Tuesday Blitz March 22 Late 2022"]
[White "Zanette, Edgard Vinicius"]
[Black "Antonio, Jorge Carlos"]
[WhiteFideId "2109263"]
[BlackFideId "113190"]
[WhiteElo "2182"]
[BlackElo "2247"]
[Result "0-1"]
[Round "09"]
[TimeControl "180+1"]
[Date "2022.03.22"]
[WhiteClock "0:00:14"]
[BlackClock "0:00:51"]

1. e4 {[%clk 0:03:00]}  e5 {[%clk 0:03:00]} 2. Nf3 {[%clk 0:03:00]}  f5 {[%clk 0:02:59]} 3. Nc3 {[%clk 0:02:19]}  d6 {[%clk 0:02:55]} 4. exf5 {[%clk 0:01:46]}  Bxf5 {[%clk 0:02:53]} 5. d4 {[%clk 0:01:45]}  e4 {[%clk 0:02:46]} 6. Nd2 {[%clk 0:01:44]}  d5 {[%clk 0:02:43]} 7. Nb3 {[%clk 0:01:43]}  c6 {[%clk 0:02:39]} 8. Be2 {[%clk 0:01:34]}  Bd6 {[%clk 0:02:38]} 9. Be3 {[%clk 0:01:28]}  Nf6 {[%clk 0:02:34]} 10. h3 {[%clk 0:01:22]}  O-O {[%clk 0:02:31]} 11. Qd2 {[%clk 0:01:20]}  b5 {[%clk 0:02:27]} 12. Nc5 {[%clk 0:01:14]}  Nbd7 {[%clk 0:02:24]} 13. Nb7 {[%clk 0:01:12]}  Qc7 {[%clk 0:02:19]} 14. Nxd6 {[%clk 0:01:13]}  Qxd6 {[%clk 0:02:18]} 15. O-O-O {[%clk 0:01:02]}  a5 {[%clk 0:02:17]} 16. g4 {[%clk 0:01:01]}  Be6 {[%clk 0:02:10]} 17. Bf4 {[%clk 0:00:54]}  Qe7 {[%clk 0:02:05]} 18. g5 {[%clk 0:00:52]}  Ne8 {[%clk 0:02:02]} 19. Rdg1 {[%clk 0:00:49]}  Nd6 {[%clk 0:01:57]} 20. Bxd6 {[%clk 0:00:44]}  Qxd6 {[%clk 0:01:57]} 21. Nd1 {[%clk 0:00:44]}  Qf4 {[%clk 0:01:47]} 22. Bg4 {[%clk 0:00:39]}  Qxd2+ {[%clk 0:01:42]} 23. Kxd2 {[%clk 0:00:40]}  Bxg4 {[%clk 0:01:39]} 24. Rxg4 {[%clk 0:00:41]}  c5 {[%clk 0:01:31]} 25. dxc5 {[%clk 0:00:39]}  Rac8 {[%clk 0:01:27]} 26. c3 {[%clk 0:00:33]}  Ne5 {[%clk 0:01:24]} 27. Rg2 {[%clk 0:00:28]}  Rxc5 {[%clk 0:01:20]} 28. Ne3 {[%clk 0:00:28]}  Nf3+ {[%clk 0:01:16]} 29. Ke2 {[%clk 0:00:27]}  d4 {[%clk 0:01:13]} 30. cxd4 {[%clk 0:00:25]}  Nxd4+ {[%clk 0:01:11]} 31. Kd2 {[%clk 0:00:25]}  Ne6 {[%clk 0:01:05]} 32. Rb1 {[%clk 0:00:17]}  Rd8+ {[%clk 0:00:59]} 33. Ke1 {[%clk 0:00:17]}  Nxg5 {[%clk 0:00:55]} 34. h4 {[%clk 0:00:14]}  Nf3+ {[%clk 0:00:51]} 0-1


[Site "https://www.chess.com"]

[Event "Titled Tuesday Blitz March 22 Late 2022"]
[White "Zhigalko, Sergei"]
[Black "Sanal, Vahap"]
[WhiteFideId "13502956"]
[BlackFideId "6300545"]
[WhiteElo "2662"]
[BlackElo "2603"]
[Result "0-1"]
[Round "09"]
[TimeControl "180+1"]
[Date "2022.03.22"]
[WhiteClock "0:00:02"]
[BlackClock "0:00:53"]

1. e4 {[%clk 0:03:00]}  d6 {[%clk 0:03:00]} 2. d4 {[%clk 0:03:01]}  Nf6 {[%clk 0:03:00]} 3. Nc3 {[%clk 0:03:01]}  e5 {[%clk 0:03:01]} 4. Nf3 {[%clk 0:03:02]}  Nbd7 {[%clk 0:03:02]} 5. Bc4 {[%clk 0:03:02]}  Be7 {[%clk 0:03:03]} 6. O-O {[%clk 0:03:02]}  O-O {[%clk 0:03:03]} 7. a4 {[%clk 0:03:03]}  c6 {[%clk 0:03:04]} 8. Re1 {[%clk 0:03:03]}  h6 {[%clk 0:03:05]} 9. h3 {[%clk 0:03:03]}  Re8 {[%clk 0:03:05]} 10. Be3 {[%clk 0:03:01]}  exd4 {[%clk 0:03:06]} 11. Bxd4 {[%clk 0:02:56]}  Nf8 {[%clk 0:03:06]} 12. Qd3 {[%clk 0:02:49]}  Be6 {[%clk 0:03:06]} 13. Rad1 {[%clk 0:02:49]}  Qc7 {[%clk 0:03:06]} 14. Bb3 {[%clk 0:02:05]}  Rad8 {[%clk 0:02:58]} 15. Nd2 {[%clk 0:01:19]}  Bxb3 {[%clk 0:02:53]} 16. Nxb3 {[%clk 0:01:16]}  Ng6 {[%clk 0:02:54]} 17. Qg3 {[%clk 0:01:15]}  b6 {[%clk 0:02:40]} 18. Nd2 {[%clk 0:01:04]}  a6 {[%clk 0:02:26]} 19. Nc4 {[%clk 0:01:02]}  Rb8 {[%clk 0:02:11]} 20. Ne3 {[%clk 0:00:55]}  Nh5 {[%clk 0:02:00]} 21. Qg4 {[%clk 0:00:51]}  Nf6 {[%clk 0:02:00]} 22. Qg3 {[%clk 0:00:49]}  Nh5 {[%clk 0:02:00]} 23. Qf3 {[%clk 0:00:49]}  Nhf4 {[%clk 0:01:59]} 24. Nf5 {[%clk 0:00:49]}  Ne6 {[%clk 0:01:58]} 25. Ne2 {[%clk 0:00:26]}  Bf8 {[%clk 0:01:54]} 26. Neg3 {[%clk 0:00:11]}  Nxd4 {[%clk 0:01:50]} 27. Rxd4 {[%clk 0:00:12]}  d5 {[%clk 0:01:50]} 28. Nh5 {[%clk 0:00:12]}  Qe5 {[%clk 0:01:41]} 29. Re3 {[%clk 0:00:05]}  Nh4 {[%clk 0:01:37]} 30. Nxh4 {[%clk 0:00:04]}  Qxd4 {[%clk 0:01:37]} 31. Nf5 {[%clk 0:00:04]}  Qe5 {[%clk 0:01:36]} 32. Qg4 {[%clk 0:00:03]}  g6 {[%clk 0:01:29]} 33. f4 {[%clk 0:00:03]}  Qxb2 {[%clk 0:01:28]} 34. e5 {[%clk 0:00:04]}  Kh8 {[%clk 0:01:21]} 35. Nf6 {[%clk 0:00:03]}  Bg7 {[%clk 0:01:06]} 36. Nxg7 {[%clk 0:00:02]}  Kxg7 {[%clk 0:01:06]} 37. Nxe8+ {[%clk 0:00:02]}  Rxe8 {[%clk 0:01:07]} 38. Kh2 {[%clk 0:00:02]}  Qxc2 {[%clk 0:01:06]} 39. Qd7 {[%clk 0:00:01]}  Re6 {[%clk 0:01:06]} 40. Rg3 {[%clk 0:00:01]}  Qf5 {[%clk 0:01:05]} 41. Rf3 {[%clk 0:00:02]}  b5 {[%clk 0:01:04]} 42. a5 {[%clk 0:00:01]}  h5 {[%clk 0:01:03]} 43. Qb7 {[%clk 0:00:01]}  c5 {[%clk 0:00:57]} 44. Qxd5 {[%clk 0:00:02]}  c4 {[%clk 0:00:58]} 45. Qc5 {[%clk 0:00:02]}  h4 {[%clk 0:00:55]} 46. Qf2 {[%clk 0:00:02]}  Rc6 {[%clk 0:00:53]} 47. Qxh4 {[%clk 0:00:02]}  c3 {[%clk 0:00:53]} 0-1


[Site "https://www.chess.com"]

[Event "Titled Tuesday Blitz March 22 Late 2022"]
[White "Adewumi, Tanitoluwa"]
[Black "Oro, Luis"]
[WhiteFideId "30966396"]
[BlackFideId "104094"]
[WhiteElo "2534"]
[BlackElo "2339"]
[Result "1-0"]
[Round "10"]
[TimeControl "180+1"]
[Date "2022.03.22"]
[WhiteClock "0:00:04"]
[BlackClock "0:00:04"]

1. e4 {[%clk 0:03:00]}  e5 {[%clk 0:02:58]} 2. Bc4 {[%clk 0:02:57]}  Bc5 {[%clk 0:02:56]} 3. Nc3 {[%clk 0:02:55]}  Nc6 {[%clk 0:02:55]} 4. d3 {[%clk 0:02:48]}  Nf6 {[%clk 0:02:54]} 5. f4 {[%clk 0:02:47]}  d6 {[%clk 0:02:52]} 6. f5 {[%clk 0:02:46]}  h6 {[%clk 0:02:51]} 7. a3 {[%clk 0:02:38]}  a6 {[%clk 0:02:50]} 8. Nf3 {[%clk 0:02:26]}  O-O {[%clk 0:02:33]} 9. h3 {[%clk 0:02:16]}  Nh5 {[%clk 0:02:21]} 10. Ne2 {[%clk 0:02:06]}  Re8 {[%clk 0:01:46]} 11. g4 {[%clk 0:02:03]}  Nf4 {[%clk 0:01:45]} 12. Bxf4 {[%clk 0:01:54]}  exf4 {[%clk 0:01:45]} 13. Nxf4 {[%clk 0:01:55]}  Be3 {[%clk 0:01:37]} 14. Nd5 {[%clk 0:01:49]}  Ba7 {[%clk 0:01:33]} 15. Qd2 {[%clk 0:01:42]}  Ne5 {[%clk 0:01:30]} 16. Nxe5 {[%clk 0:01:40]}  Qh4+ {[%clk 0:01:29]} 17. Kd1 {[%clk 0:01:35]}  Rxe5 {[%clk 0:01:28]} 18. Nxc7 {[%clk 0:01:32]}  Rb8 {[%clk 0:01:27]} 19. Qe1 {[%clk 0:01:27]}  Qg5 {[%clk 0:01:18]} 20. c3 {[%clk 0:01:18]}  Qf4 {[%clk 0:01:14]} 21. Kc2 {[%clk 0:01:10]}  b5 {[%clk 0:01:12]} 22. Ba2 {[%clk 0:01:01]}  Bb7 {[%clk 0:01:10]} 23. Nd5 {[%clk 0:00:44]}  Qf3 {[%clk 0:01:05]} 24. Rf1 {[%clk 0:00:39]}  Qg2+ {[%clk 0:01:03]} 25. Qd2 {[%clk 0:00:39]}  Qxh3 {[%clk 0:01:01]} 26. Rh1 {[%clk 0:00:35]}  Qg3 {[%clk 0:00:53]} 27. Nf6+ {[%clk 0:00:20]}  Kf8 {[%clk 0:00:21]} 28. Nd7+ {[%clk 0:00:18]}  Ke7 {[%clk 0:00:22]} 29. Nxb8 {[%clk 0:00:17]}  Bxb8 {[%clk 0:00:22]} 30. Rag1 {[%clk 0:00:15]}  Qf3 {[%clk 0:00:22]} 31. g5 {[%clk 0:00:15]}  h5 {[%clk 0:00:21]} 32. g6 {[%clk 0:00:15]}  f6 {[%clk 0:00:20]} 33. Rf1 {[%clk 0:00:11]}  Qg3 {[%clk 0:00:19]} 34. Rhg1 {[%clk 0:00:10]}  Qh3 {[%clk 0:00:19]} 35. Qg2 {[%clk 0:00:06]}  Qe3 {[%clk 0:00:13]} 36. Qf2 {[%clk 0:00:06]}  Qh6 {[%clk 0:00:11]} 37. Qf4 {[%clk 0:00:05]}  Qh8 {[%clk 0:00:10]} 38. Re1 {[%clk 0:00:05]}  Rc5 {[%clk 0:00:08]} 39. d4 {[%clk 0:00:05]}  Rc8 {[%clk 0:00:08]} 40. e5 {[%clk 0:00:05]}  dxe5 {[%clk 0:00:09]} 41. dxe5 {[%clk 0:00:06]}  Kf8 {[%clk 0:00:07]} 42. Qb4+ {[%clk 0:00:04]}  Ke8 {[%clk 0:00:04]} 43. exf6+ {[%clk 0:00:05]}  Kd7 {[%clk 0:00:04]} 44. Re7+ {[%clk 0:00:04]}  Kc6 {[%clk 0:00:05]} 45. Rge1 {[%clk 0:00:04]}  Bd6 {[%clk 0:00:03]} 46. R1e6 {[%clk 0:00:05]}  Rd8 {[%clk 0:00:04]} 47. Rxd6+ {[%clk 0:00:03]}  Rxd6 {[%clk 0:00:04]} 48. Qe4+ {[%clk 0:00:04]} 1-0


[Site "https://www.chess.com"]

[Event "Titled Tuesday Blitz March 22 Late 2022"]
[White "Al-Tarboush, Ward"]
[Black "Golubka, Petro"]
[WhiteFideId "7601450"]
[BlackFideId "14114224"]
[WhiteElo "2276"]
[BlackElo "2346"]
[Result "1-0"]
[Round "10"]
[TimeControl "180+1"]
[Date "2022.03.22"]
[WhiteClock "0:00:57"]
[BlackClock "0:01:47"]

1. e4 {[%clk 0:02:56]}  g6 {[%clk 0:02:59]} 2. d4 {[%clk 0:02:55]}  Bg7 {[%clk 0:03:00]} 3. Nf3 {[%clk 0:02:55]}  c6 {[%clk 0:02:59]} 4. Bd3 {[%clk 0:02:55]}  d6 {[%clk 0:02:59]} 5. O-O {[%clk 0:02:55]}  Bg4 {[%clk 0:03:00]} 6. c3 {[%clk 0:02:54]}  Bxf3 {[%clk 0:03:00]} 7. Qxf3 {[%clk 0:02:53]}  Nd7 {[%clk 0:03:01]} 8. Nd2 {[%clk 0:02:53]}  Ngf6 {[%clk 0:03:01]} 9. Re1 {[%clk 0:02:52]}  O-O {[%clk 0:02:58]} 10. Nf1 {[%clk 0:02:51]}  e5 {[%clk 0:02:57]} 11. Be3 {[%clk 0:02:50]}  a5 {[%clk 0:02:57]} 12. a4 {[%clk 0:02:47]}  Re8 {[%clk 0:02:57]} 13. Ng3 {[%clk 0:02:46]}  Qc7 {[%clk 0:02:57]} 14. h4 {[%clk 0:02:45]}  h5 {[%clk 0:02:57]} 15. Bg5 {[%clk 0:02:45]}  exd4 {[%clk 0:02:45]} 16. cxd4 {[%clk 0:02:41]}  Qb6 {[%clk 0:02:45]} 17. Bc4 {[%clk 0:02:29]}  Qxd4 {[%clk 0:02:40]} 18. Rac1 {[%clk 0:02:27]}  Ne5 {[%clk 0:02:40]} 19. Qe2 {[%clk 0:02:21]}  Nfg4 {[%clk 0:02:28]} 20. Ba2 {[%clk 0:02:16]}  Nd3 {[%clk 0:02:26]} 21. Be3 {[%clk 0:01:47]}  Nxe3 {[%clk 0:02:21]} 22. fxe3 {[%clk 0:01:47]}  Qxb2 {[%clk 0:02:22]} 23. Rc2 {[%clk 0:01:47]}  Qb4 {[%clk 0:02:18]} 24. Rb1 {[%clk 0:01:43]}  Nb2 {[%clk 0:02:15]} 25. Rbxb2 {[%clk 0:01:39]}  Bxb2 {[%clk 0:02:16]} 26. Rxb2 {[%clk 0:01:40]}  Qxa4 {[%clk 0:02:16]} 27. Nxh5 {[%clk 0:01:36]}  gxh5 {[%clk 0:02:14]} 28. Qxh5 {[%clk 0:01:37]}  Re5 {[%clk 0:01:57]} 29. Qxf7+ {[%clk 0:01:17]}  Kh8 {[%clk 0:01:56]} 30. Qf6+ {[%clk 0:01:18]}  Kh7 {[%clk 0:01:56]} 31. Qf7+ {[%clk 0:01:04]}  Kh6 {[%clk 0:01:56]} 32. Rf2 {[%clk 0:01:01]}  Qd1+ {[%clk 0:01:47]} 33. Kh2 {[%clk 0:00:57]} 1-0


[Site "https://www.chess.com"]

[Event "Titled Tuesday Blitz March 22 Late 2022"]
[White "Antonio, Jorge Carlos"]
[Black "Celestino, Rafael Teixeira"]
[WhiteFideId "113190"]
[BlackFideId "2108925"]
[WhiteElo "2247"]
[BlackElo "2317"]
[Result "0-1"]
[Round "10"]
[TimeControl "180+1"]
[Date "2022.03.22"]
[WhiteClock "0:02:34"]
[BlackClock "0:01:43"]

1. d4 {[%clk 0:03:00]}  Nf6 {[%clk 0:02:57]} 2. Nf3 {[%clk 0:03:00]}  e6 {[%clk 0:02:55]} 3. Bf4 {[%clk 0:02:59]}  d5 {[%clk 0:02:54]} 4. e3 {[%clk 0:03:00]}  c5 {[%clk 0:02:54]} 5. c3 {[%clk 0:03:00]}  Nc6 {[%clk 0:02:55]} 6. Bd3 {[%clk 0:03:00]}  Ne4 {[%clk 0:02:55]} 7. Nbd2 {[%clk 0:02:58]}  f5 {[%clk 0:02:55]} 8. Ne5 {[%clk 0:02:58]}  Bd6 {[%clk 0:02:53]} 9. Nxc6 {[%clk 0:02:57]}  bxc6 {[%clk 0:02:53]} 10. Bxd6 {[%clk 0:02:57]}  Qxd6 {[%clk 0:02:54]} 11. O-O {[%clk 0:02:57]}  O-O {[%clk 0:02:54]} 12. f3 {[%clk 0:02:57]}  Nxd2 {[%clk 0:02:21]} 13. Qxd2 {[%clk 0:02:56]}  Rb8 {[%clk 0:02:14]} 14. f4 {[%clk 0:02:55]}  Bd7 {[%clk 0:02:09]} 15. Rf2 {[%clk 0:02:54]}  Be8 {[%clk 0:02:09]} 16. Bf1 {[%clk 0:02:51]}  Bh5 {[%clk 0:02:09]} 17. b3 {[%clk 0:02:47]}  Rb7 {[%clk 0:02:03]} 18. Be2 {[%clk 0:02:45]}  Bxe2 {[%clk 0:01:56]} 19. Qxe2 {[%clk 0:02:44]}  Rfb8 {[%clk 0:01:54]} 20. Qc2 {[%clk 0:02:44]}  a5 {[%clk 0:01:47]} 21. dxc5 {[%clk 0:02:41]}  Qxc5 {[%clk 0:01:47]} 22. Rc1 {[%clk 0:02:40]}  Qxe3 {[%clk 0:01:46]} 23. Qe2 {[%clk 0:02:34]}  Qxc1+ {[%clk 0:01:43]} 0-1


[Site "https://www.chess.com"]

[Event "Titled Tuesday Blitz March 22 Late 2022"]
[White "Ardila, Oscar Humberto"]
[Black "Vine, Elzbieta"]
[WhiteFideId "4404742"]
[BlackFideId "1119320"]
[WhiteElo "1966"]
[BlackElo "1844"]
[Result "1-0"]
[Round "10"]
[TimeControl "180+1"]
[Date "2022.03.22"]
[WhiteClock "0:00:35"]
[BlackClock "0:00:01"]

1. d4 {[%clk 0:03:00]}  d5 {[%clk 0:02:59]} 2. c4 {[%clk 0:03:00]}  c6 {[%clk 0:02:58]} 3. Nf3 {[%clk 0:02:59]}  Nf6 {[%clk 0:02:57]} 4. Nc3 {[%clk 0:02:58]}  Bg4 {[%clk 0:02:55]} 5. e3 {[%clk 0:02:56]}  e6 {[%clk 0:02:49]} 6. Bd2 {[%clk 0:02:54]}  Bd6 {[%clk 0:02:43]} 7. c5 {[%clk 0:02:52]}  Bc7 {[%clk 0:02:42]} 8. Be2 {[%clk 0:02:52]}  Nbd7 {[%clk 0:02:37]} 9. O-O {[%clk 0:02:52]}  Qe7 {[%clk 0:02:20]} 10. b4 {[%clk 0:02:51]}  O-O {[%clk 0:02:16]} 11. b5 {[%clk 0:02:49]}  e5 {[%clk 0:02:08]} 12. bxc6 {[%clk 0:02:49]}  bxc6 {[%clk 0:02:08]} 13. Qa4 {[%clk 0:02:28]}  e4 {[%clk 0:02:00]} 14. Ne1 {[%clk 0:02:26]}  Bxe2 {[%clk 0:01:55]} 15. Nxe2 {[%clk 0:02:27]}  Qe6 {[%clk 0:01:48]} 16. Nf4 {[%clk 0:02:14]}  Bxf4 {[%clk 0:01:44]} 17. exf4 {[%clk 0:02:15]}  Ng4 {[%clk 0:01:41]} 18. h3 {[%clk 0:02:11]}  Nh6 {[%clk 0:01:38]} 19. Be3 {[%clk 0:02:08]}  Nf6 {[%clk 0:01:35]} 20. Rb1 {[%clk 0:02:00]}  Nf5 {[%clk 0:01:27]} 21. Nc2 {[%clk 0:01:59]}  Nh4 {[%clk 0:01:09]} 22. Rb7 {[%clk 0:01:55]}  h5 {[%clk 0:00:51]} 23. Nb4 {[%clk 0:01:52]}  Nf3+ {[%clk 0:00:43]} 24. Kh1 {[%clk 0:01:48]}  Ng4 {[%clk 0:00:39]} 25. Qxc6 {[%clk 0:01:44]}  Qf5 {[%clk 0:00:32]} 26. Qxd5 {[%clk 0:01:42]}  Nxe3 {[%clk 0:00:24]} 27. fxe3 {[%clk 0:01:37]}  Qc8 {[%clk 0:00:15]} 28. c6 {[%clk 0:01:14]}  a5 {[%clk 0:00:13]} 29. Nc2 {[%clk 0:01:03]}  Ra6 {[%clk 0:00:12]} 30. Qxh5 {[%clk 0:00:55]}  Rxc6 {[%clk 0:00:11]} 31. Rb2 {[%clk 0:00:46]}  Rxc2 {[%clk 0:00:08]} 32. Rxc2 {[%clk 0:00:46]}  Qxc2 {[%clk 0:00:08]} 33. gxf3 {[%clk 0:00:47]}  exf3 {[%clk 0:00:07]} 34. Qxf3 {[%clk 0:00:47]}  Qxa2 {[%clk 0:00:07]} 35. e4 {[%clk 0:00:44]}  a4 {[%clk 0:00:06]} 36. d5 {[%clk 0:00:40]}  a3 {[%clk 0:00:06]} 37. Qd1 {[%clk 0:00:38]}  Qc4 {[%clk 0:00:03]} 38. e5 {[%clk 0:00:35]}  Qe4+ {[%clk 0:00:01]} 39. Kh2 {[%clk 0:00:35]} 1-0


[Site "https://www.chess.com"]